[Event "Early-Titled-Tuesday-Blitz-March-26-2024"]
[Site "Chess.com"]
[Date "2024.03.26"]
[Round "3"]
[White "LileKoridze"]
[Black "Resignify"]
[Result "0-1"]
[WhiteElo "2452"]
[BlackElo "2268"]
[TimeControl "180+1"]
[EndTime "8:25:34 PDT"]
[Termination "Resignify won by resignation"]

1. d4 {[%clk 0:03:00.9]} 1... Nf6 {[%clk 0:02:59.5]} 2. c4 {[%clk 0:03:01.1]}
2... d6 {[%clk 0:02:59]} 3. Nf3 {[%clk 0:02:57.2]} 3... g6 {[%clk 0:02:57.9]} 4.
Nc3 {[%clk 0:02:57.3]} 4... Bg7 {[%clk 0:02:58.2]} 5. e4 {[%clk 0:02:57.5]} 5...
O-O {[%clk 0:02:58.2]} 6. Be2 {[%clk 0:02:57.8]} 6... e5 {[%clk 0:02:57.2]} 7.
d5 {[%clk 0:02:57.1]} 7... a5 {[%clk 0:02:54.5]} 8. Bg5 {[%clk 0:02:55.2]} 8...
h6 {[%clk 0:02:54.4]} 9. Be3 {[%clk 0:02:55.4]} 9... Na6 {[%clk 0:02:54.3]} 10.
Nd2 {[%clk 0:02:54.2]} 10... Ne8 {[%clk 0:02:49]} 11. g4 {[%clk 0:02:51.5]}
11... f5 {[%clk 0:02:48]} 12. gxf5 {[%clk 0:02:51.7]} 12... gxf5 {[%clk
0:02:48.2]} 13. exf5 {[%clk 0:02:52.3]} 13... Bxf5 {[%clk 0:02:46.8]} 14. Nde4
{[%clk 0:02:50.6]} 14... Nf6 {[%clk 0:02:43.6]} 15. Ng3 {[%clk 0:02:48.7]} 15...
Bh7 {[%clk 0:02:37.6]} 16. Rg1 {[%clk 0:02:48.5]} 16... Kh8 {[%clk 0:02:37.1]}
17. Qd2 {[%clk 0:02:47.3]} 17... Nb4 {[%clk 0:02:30.3]} 18. a3 {[%clk
0:02:44.1]} 18... Nc2+ {[%clk 0:02:28.4]} 19. Kd1 {[%clk 0:02:43.3]} 19... Nxe3+
{[%clk 0:02:27.7]} 20. Qxe3 {[%clk 0:02:41.6]} 20... e4 {[%clk 0:01:52.9]} 21.
Nh5 {[%clk 0:02:22.1]} 21... Nxh5 {[%clk 0:01:47.4]} 22. Bxh5 {[%clk 0:02:23]}
22... Qh4 {[%clk 0:01:33.4]} 23. Bg4 {[%clk 0:02:19.5]} 23... Qxf2 {[%clk
0:01:23]} 24. Qe1 {[%clk 0:01:59.5]} 24... e3 {[%clk 0:01:07]} 25. Rc1 {[%clk
0:01:59]} 25... Rae8 {[%clk 0:00:57.7]} 26. Be2 {[%clk 0:01:58.4]} 26... Rf4
{[%clk 0:00:50.6]} 27. h3 {[%clk 0:01:50.2]} 27... Rd4+ {[%clk 0:00:48.2]} 0-1

[Event "Early-Titled-Tuesday-Blitz-March-26-2024"]
[Site "Chess.com"]
[Date "2024.03.26"]
[Round "3"]
[White "Mikhail_Golubev"]
[Black "Rsnr"]
[Result "0-1"]
[WhiteElo "2724"]
[BlackElo "2910"]
[TimeControl "180+1"]
[EndTime "8:25:40 PDT"]
[Termination "Rsnr won by resignation"]

1. e4 {[%clk 0:03:00.9]} 1... c6 {[%clk 0:03:00]} 2. d4 {[%clk 0:02:59.6]} 2...
d5 {[%clk 0:03:00.9]} 3. Nc3 {[%clk 0:02:59.5]} 3... dxe4 {[%clk 0:03:00.8]} 4.
Nxe4 {[%clk 0:03:00.4]} 4... Bf5 {[%clk 0:03:01]} 5. Ng3 {[%clk 0:02:50.4]} 5...
Bg6 {[%clk 0:03:01.1]} 6. c3 {[%clk 0:02:50.7]} 6... e6 {[%clk 0:02:58.2]} 7.
Nh3 {[%clk 0:02:46.9]} 7... Nf6 {[%clk 0:02:38.3]} 8. Nf4 {[%clk 0:02:43.4]}
8... Bd6 {[%clk 0:02:38.8]} 9. h4 {[%clk 0:02:42.4]} 9... Qc7 {[%clk 0:02:39.3]}
10. Qf3 {[%clk 0:02:42.3]} 10... c5 {[%clk 0:02:39.2]} 11. h5 {[%clk 0:02:35.2]}
11... Bc2 {[%clk 0:02:39.5]} 12. h6 {[%clk 0:02:32.5]} 12... O-O {[%clk
0:02:04]} 13. hxg7 {[%clk 0:02:27.9]} 13... Re8 {[%clk 0:02:04.6]} 14. Nfh5
{[%clk 0:01:50.7]} 14... Nxh5 {[%clk 0:02:04.5]} 15. Nxh5 {[%clk 0:01:50.9]}
15... Nd7 {[%clk 0:02:05.1]} 16. Bd3 {[%clk 0:01:40]} 16... Bxd3 {[%clk
0:02:05.7]} 17. Qxd3 {[%clk 0:01:40.5]} 17... e5 {[%clk 0:02:05.8]} 18. Qf5
{[%clk 0:01:38.2]} 18... exd4+ {[%clk 0:02:02]} 19. Kf1 {[%clk 0:01:38]} 19...
Re5 {[%clk 0:02:02.5]} 20. Qxd7 {[%clk 0:01:31.8]} 20... Rxh5 {[%clk 0:01:57.9]}
0-1

[Event "Early-Titled-Tuesday-Blitz-March-26-2024"]
[Site "Chess.com"]
[Date "2024.03.26"]
[Round "3"]
[White "bazar-wokzal"]
[Black "lacafi"]
[Result "1-0"]
[WhiteElo "2566"]
[BlackElo "2315"]
[TimeControl "180+1"]
[EndTime "8:25:48 PDT"]
[Termination "bazar-wokzal won by checkmate"]

1. e4 {[%clk 0:03:00.9]} 1... c6 {[%clk 0:02:57.5]} 2. d4 {[%clk 0:03:00.4]}
2... d5 {[%clk 0:02:57.9]} 3. e5 {[%clk 0:03:00.9]} 3... Bf5 {[%clk 0:02:57.9]}
4. Nc3 {[%clk 0:03:01.1]} 4... e6 {[%clk 0:02:56]} 5. g4 {[%clk 0:03:01.4]} 5...
Bg6 {[%clk 0:02:56.4]} 6. Nge2 {[%clk 0:03:01.7]} 6... Be7 {[%clk 0:02:52.7]} 7.
Be3 {[%clk 0:03:00.9]} 7... Nd7 {[%clk 0:02:51.4]} 8. f4 {[%clk 0:02:58.5]} 8...
c5 {[%clk 0:02:48.1]} 9. Bg2 {[%clk 0:02:57]} 9... cxd4 {[%clk 0:02:42.8]} 10.
Nxd4 {[%clk 0:02:56.7]} 10... Nh6 {[%clk 0:02:04.5]} 11. O-O {[%clk 0:02:53]}
11... Be4 {[%clk 0:00:50.5]} 12. Bxe4 {[%clk 0:02:25.5]} 12... dxe4 {[%clk
0:00:49.9]} 13. Nxe4 {[%clk 0:02:25.9]} 13... O-O {[%clk 0:00:47.7]} 14. Ng3
{[%clk 0:02:15.5]} 14... Rc8 {[%clk 0:00:38.6]} 15. g5 {[%clk 0:02:14.2]} 15...
Nf5 {[%clk 0:00:35.4]} 16. Ndxf5 {[%clk 0:02:13.6]} 16... exf5 {[%clk
0:00:34.8]} 17. Nxf5 {[%clk 0:02:14.3]} 17... Bc5 {[%clk 0:00:26.3]} 18. Bxc5
{[%clk 0:02:10.1]} 18... Rxc5 {[%clk 0:00:26.9]} 19. c3 {[%clk 0:02:08.1]} 19...
Qc7 {[%clk 0:00:25.4]} 20. Qd6 {[%clk 0:02:05.7]} 20... Nb6 {[%clk 0:00:22.2]}
21. Ne7+ {[%clk 0:01:58.9]} 21... Kh8 {[%clk 0:00:21]} 22. Ng6+ {[%clk
0:01:57.8]} 22... hxg6 {[%clk 0:00:20.4]} 23. Qxf8+ {[%clk 0:01:57.5]} 23... Kh7
{[%clk 0:00:20.9]} 24. Rf3 {[%clk 0:01:57.4]} 24... Rd5 {[%clk 0:00:17.4]} 25.
Rh3# {[%clk 0:01:56.8]} 1-0

[Event "Early-Titled-Tuesday-Blitz-March-26-2024"]
[Site "Chess.com"]
[Date "2024.03.26"]
[Round "3"]
[White "gpsji27"]
[Black "AGW2016"]
[Result "0-1"]
[WhiteElo "2355"]
[BlackElo "2547"]
[TimeControl "180+1"]
[EndTime "8:25:50 PDT"]
[Termination "AGW2016 won by resignation"]

1. d4 {[%clk 0:03:00.9]} 1... Nf6 {[%clk 0:02:57.7]} 2. Nf3 {[%clk 0:03:01.4]}
2... g6 {[%clk 0:02:58.2]} 3. Nc3 {[%clk 0:03:01]} 3... Bg7 {[%clk 0:02:59.1]}
4. e4 {[%clk 0:03:01]} 4... d6 {[%clk 0:02:59.9]} 5. h3 {[%clk 0:03:00.4]} 5...
O-O {[%clk 0:03:00.5]} 6. Be3 {[%clk 0:03:00.2]} 6... c6 {[%clk 0:02:59.4]} 7.
Qd2 {[%clk 0:02:58]} 7... Qc7 {[%clk 0:02:59.5]} 8. e5 {[%clk 0:02:57.1]} 8...
dxe5 {[%clk 0:02:56]} 9. dxe5 {[%clk 0:02:58]} 9... Nfd7 {[%clk 0:02:56.5]} 10.
e6 {[%clk 0:02:47.8]} 10... fxe6 {[%clk 0:02:57.4]} 11. Bc4 {[%clk 0:02:43.1]}
11... Nb6 {[%clk 0:02:49]} 12. Bb3 {[%clk 0:02:41.7]} 12... Nd5 {[%clk 0:02:47]}
13. Bd4 {[%clk 0:02:25.6]} 13... e5 {[%clk 0:02:43.4]} 14. Bxd5+ {[%clk
0:02:19.1]} 14... cxd5 {[%clk 0:02:44.3]} 15. Nxd5 {[%clk 0:02:19.3]} 15... Qd6
{[%clk 0:02:43.1]} 16. Bc3 {[%clk 0:02:06.9]} 16... Nc6 {[%clk 0:02:43.3]} 17.
O-O-O {[%clk 0:02:05.8]} 17... Nd4 {[%clk 0:02:43.1]} 18. Ne3 {[%clk 0:01:49.1]}
18... Nxf3 {[%clk 0:02:33.1]} 19. Qxd6 {[%clk 0:01:36.6]} 19... exd6 {[%clk
0:02:34]} 20. gxf3 {[%clk 0:01:36.5]} 20... Rxf3 {[%clk 0:02:30.4]} 21. Rxd6
{[%clk 0:01:35.3]} 21... Bxh3 {[%clk 0:02:28.8]} 22. Nd1 {[%clk 0:01:26.5]}
22... Bf5 {[%clk 0:02:22.6]} 23. Re1 {[%clk 0:01:23.6]} 23... e4 {[%clk
0:02:22.4]} 24. Bxg7 {[%clk 0:01:12.6]} 24... Kxg7 {[%clk 0:02:23.3]} 25. Re2
{[%clk 0:01:01.6]} 25... h5 {[%clk 0:02:02.9]} 26. Ne3 {[%clk 0:00:57.7]} 26...
h4 {[%clk 0:02:00.5]} 27. Nxf5+ {[%clk 0:00:54.5]} 27... gxf5 {[%clk 0:01:57.7]}
28. Rd7+ {[%clk 0:00:54.2]} 28... Kf6 {[%clk 0:01:56]} 29. Rxb7 {[%clk
0:00:51.8]} 29... Rh8 {[%clk 0:01:54.3]} 30. Re1 {[%clk 0:00:50.6]} 30... h3
{[%clk 0:01:54.2]} 31. Rh1 {[%clk 0:00:50.6]} 31... h2 {[%clk 0:01:54.3]} 32.
Rd7 {[%clk 0:00:46]} 32... Rxf2 {[%clk 0:01:53.6]} 33. Rdd1 {[%clk 0:00:45.5]}
33... e3 {[%clk 0:01:53.1]} 34. Rde1 {[%clk 0:00:45.1]} 34... f4 {[%clk
0:01:52.7]} 0-1

[Event "Early-Titled-Tuesday-Blitz-March-26-2024"]
[Site "Chess.com"]
[Date "2024.03.26"]
[Round "3"]
[White "Switzerlamb"]
[Black "ViktoriyaTarasova"]
[Result "1-0"]
[WhiteElo "2554"]
[BlackElo "2357"]
[TimeControl "180+1"]
[EndTime "8:25:57 PDT"]
[Termination "Switzerlamb won by resignation"]

1. Nf3 {[%clk 0:03:00.9]} 1... Nf6 {[%clk 0:02:59.8]} 2. c4 {[%clk 0:03:01.2]}
2... e6 {[%clk 0:02:59.7]} 3. Nc3 {[%clk 0:03:01.7]} 3... b6 {[%clk 0:03:00.2]}
4. g3 {[%clk 0:03:01.5]} 4... Bb7 {[%clk 0:03:00.3]} 5. d4 {[%clk 0:03:01.2]}
5... Bb4 {[%clk 0:02:58.1]} 6. Bd2 {[%clk 0:03:00.8]} 6... O-O {[%clk
0:02:57.1]} 7. Bg2 {[%clk 0:03:01.1]} 7... d5 {[%clk 0:02:57.8]} 8. Ne5 {[%clk
0:02:58.4]} 8... Nbd7 {[%clk 0:02:55.5]} 9. O-O {[%clk 0:02:56]} 9... c5 {[%clk
0:02:49.1]} 10. Nxd7 {[%clk 0:02:51.2]} 10... Qxd7 {[%clk 0:02:47.8]} 11. cxd5
{[%clk 0:02:48.9]} 11... exd5 {[%clk 0:02:47.7]} 12. dxc5 {[%clk 0:02:43.8]}
12... bxc5 {[%clk 0:02:47.2]} 13. Bg5 {[%clk 0:02:34.9]} 13... Bxc3 {[%clk
0:02:42.5]} 14. bxc3 {[%clk 0:02:35.7]} 14... Qf5 {[%clk 0:02:39.8]} 15. Be3
{[%clk 0:02:10.6]} 15... Rac8 {[%clk 0:02:35.3]} 16. Qd3 {[%clk 0:02:04.8]}
16... Qxd3 {[%clk 0:02:29.4]} 17. exd3 {[%clk 0:02:05.4]} 17... Ba6 {[%clk
0:02:30]} 18. Rfd1 {[%clk 0:02:03.7]} 18... h6 {[%clk 0:02:27.2]} 19. Bf3 {[%clk
0:01:53.7]} 19... Rfd8 {[%clk 0:02:26.2]} 20. Bf4 {[%clk 0:01:49.8]} 20... g5
{[%clk 0:02:18.3]} 21. Bc1 {[%clk 0:01:43.4]} 21... Kg7 {[%clk 0:02:08.7]} 22.
Ba3 {[%clk 0:01:42]} 22... Rc6 {[%clk 0:01:55.1]} 23. Rab1 {[%clk 0:01:40.2]}
23... Rdc8 {[%clk 0:01:28]} 24. c4 {[%clk 0:01:32.5]} 24... dxc4 {[%clk
0:01:23.5]} 25. Bxc6 {[%clk 0:01:30.9]} 25... Rxc6 {[%clk 0:01:24.2]} 26. dxc4
{[%clk 0:01:30.4]} 26... Bxc4 {[%clk 0:01:24.9]} 27. Rbc1 {[%clk 0:01:30.3]}
27... Bxa2 {[%clk 0:01:24.8]} 28. Rxc5 {[%clk 0:01:28.7]} 28... Re6 {[%clk
0:01:17.8]} 29. Ra5 {[%clk 0:01:22.6]} 29... Re7 {[%clk 0:01:13.3]} 30. Bxe7
{[%clk 0:01:20.4]} 1-0

[Event "Early-Titled-Tuesday-Blitz-March-26-2024"]
[Site "Chess.com"]
[Date "2024.03.26"]
[Round "3"]
[White "DinaBelenkaya"]
[Black "Korchmar_Vasiliy"]
[Result "0-1"]
[WhiteElo "2479"]
[BlackElo "2702"]
[TimeControl "180+1"]
[EndTime "8:26:01 PDT"]
[Termination "Korchmar_Vasiliy won by resignation"]

1. e4 {[%clk 0:02:31.4]} 1... c5 {[%clk 0:03:00]} 2. Nc3 {[%clk 0:02:28.9]} 2...
d6 {[%clk 0:02:58.9]} 3. Nf3 {[%clk 0:02:26.2]} 3... Nc6 {[%clk 0:02:58.7]} 4.
g3 {[%clk 0:02:24.8]} 4... g6 {[%clk 0:02:58.7]} 5. Bg2 {[%clk 0:02:23.4]} 5...
Bg7 {[%clk 0:02:59.3]} 6. O-O {[%clk 0:02:21.7]} 6... e5 {[%clk 0:02:59.7]} 7.
d3 {[%clk 0:02:20.8]} 7... Nge7 {[%clk 0:03:00.1]} 8. h4 {[%clk 0:02:17.1]} 8...
h6 {[%clk 0:02:59.5]} 9. Nd5 {[%clk 0:02:11.9]} 9... Nxd5 {[%clk 0:02:58.8]} 10.
exd5 {[%clk 0:02:11]} 10... Ne7 {[%clk 0:02:59.4]} 11. Nd2 {[%clk 0:02:10.1]}
11... O-O {[%clk 0:02:56]} 12. h5 {[%clk 0:02:04.3]} 12... g5 {[%clk 0:02:55.7]}
13. g4 {[%clk 0:02:02.9]} 13... f5 {[%clk 0:02:55.6]} 14. gxf5 {[%clk
0:02:02.2]} 14... Nxf5 {[%clk 0:02:55.6]} 15. Be4 {[%clk 0:01:52]} 15... Nh4
{[%clk 0:02:53.8]} 16. Nc4 {[%clk 0:01:42.2]} 16... Bh3 {[%clk 0:02:51.2]} 17.
Ne3 {[%clk 0:01:37.6]} 17... Qd7 {[%clk 0:02:25.3]} 18. Kh2 {[%clk 0:01:33.1]}
18... Rf4 {[%clk 0:02:22.3]} 19. f3 {[%clk 0:01:23.8]} 19... Bxf1 {[%clk
0:02:19.7]} 20. Nxf1 {[%clk 0:01:16.8]} 20... Rxe4 {[%clk 0:02:02.1]} 21. fxe4
{[%clk 0:00:39.1]} 21... Rf8 {[%clk 0:02:03]} 22. Be3 {[%clk 0:00:23.8]} 22...
Rf3 {[%clk 0:02:03]} 23. Qxf3 {[%clk 0:00:14.9]} 23... Nxf3+ {[%clk 0:02:02.7]}
24. Kg3 {[%clk 0:00:15.3]} 24... Nd4 {[%clk 0:01:56.4]} 25. Bxd4 {[%clk
0:00:11.8]} 25... exd4 {[%clk 0:01:57.3]} 26. Nh2 {[%clk 0:00:11.8]} 26... Be5+
{[%clk 0:01:57.7]} 27. Kg2 {[%clk 0:00:11.7]} 27... Bxh2 {[%clk 0:01:58.4]} 28.
Kxh2 {[%clk 0:00:12.6]} 28... Qg4 {[%clk 0:01:58.8]} 29. Rf1 {[%clk 0:00:11.7]}
29... Qxh5+ {[%clk 0:01:59.1]} 0-1

[Event "Early-Titled-Tuesday-Blitz-March-26-2024"]
[Site "Chess.com"]
[Date "2024.03.26"]
[Round "3"]
[White "norwaytoadog"]
[Black "MikeWizard"]
[Result "1-0"]
[WhiteElo "2399"]
[BlackElo "2099"]
[TimeControl "180+1"]
[EndTime "8:26:07 PDT"]
[Termination "norwaytoadog won by resignation"]

1. e4 {[%clk 0:02:59.4]} 1... d6 {[%clk 0:02:54.7]} 2. d4 {[%clk 0:02:59]} 2...
Nf6 {[%clk 0:02:53.7]} 3. Nc3 {[%clk 0:02:59.5]} 3... Nbd7 {[%clk 0:02:52.6]} 4.
Nf3 {[%clk 0:02:59.3]} 4... e5 {[%clk 0:02:52.6]} 5. Rg1 {[%clk 0:02:58.5]} 5...
h5 {[%clk 0:02:46.3]} 6. Bc4 {[%clk 0:02:55.5]} 6... Be7 {[%clk 0:02:45.8]} 7.
Bxf7+ {[%clk 0:02:51]} 7... Kxf7 {[%clk 0:02:42.9]} 8. Ng5+ {[%clk 0:02:50.9]}
8... Kg8 {[%clk 0:02:40.5]} 9. Ne6 {[%clk 0:02:36.1]} 9... Qe8 {[%clk
0:02:40.4]} 10. Nxc7 {[%clk 0:02:34.7]} 10... Qd8 {[%clk 0:02:39.9]} 11. Nxa8
{[%clk 0:02:26.9]} 11... exd4 {[%clk 0:02:39.3]} 12. Qxd4 {[%clk 0:02:25.6]}
12... Nc5 {[%clk 0:02:32.9]} 13. Be3 {[%clk 0:02:07.1]} 13... Be6 {[%clk
0:02:25.7]} 14. b4 {[%clk 0:01:51.5]} 14... Qxa8 {[%clk 0:02:12]} 15. bxc5
{[%clk 0:01:50.7]} 15... dxc5 {[%clk 0:02:12.3]} 16. Qe5 {[%clk 0:01:48.4]}
16... Qc8 {[%clk 0:02:02.4]} 17. Nd5 {[%clk 0:01:42.1]} 17... Bxd5 {[%clk
0:01:54.1]} 18. exd5 {[%clk 0:01:42.2]} 18... Kf7 {[%clk 0:01:48.6]} 19. O-O-O
{[%clk 0:01:34.9]} 19... Ng4 {[%clk 0:01:38.9]} 20. Qe4 {[%clk 0:01:12.3]} 20...
c4 {[%clk 0:01:27.4]} 21. d6 {[%clk 0:01:10.7]} 21... Bf6 {[%clk 0:01:22.1]} 22.
Qd5+ {[%clk 0:01:02.7]} 22... Qe6 {[%clk 0:01:18.7]} 23. Rge1 {[%clk 0:00:50.7]}
23... Rd8 {[%clk 0:01:12.2]} 24. Qxe6+ {[%clk 0:00:48.9]} 24... Kxe6 {[%clk
0:01:09.6]} 25. Bb6+ {[%clk 0:00:49.1]} 1-0

[Event "Early-Titled-Tuesday-Blitz-March-26-2024"]
[Site "Chess.com"]
[Date "2024.03.26"]
[Round "3"]
[White "Matrix3x3a"]
[Black "Oligan22"]
[Result "1-0"]
[WhiteElo "2609"]
[BlackElo "2394"]
[TimeControl "180+1"]
[EndTime "8:26:20 PDT"]
[Termination "Matrix3x3a won on time"]

1. d4 {[%clk 0:03:00.9]} 1... d5 {[%clk 0:02:59.2]} 2. Nf3 {[%clk 0:03:00.7]}
2... Nf6 {[%clk 0:02:58.9]} 3. c4 {[%clk 0:03:00.2]} 3... dxc4 {[%clk
0:02:59.8]} 4. e3 {[%clk 0:03:00]} 4... e6 {[%clk 0:02:59.7]} 5. Bxc4 {[%clk
0:02:59]} 5... a6 {[%clk 0:03:00.6]} 6. O-O {[%clk 0:02:58]} 6... c5 {[%clk
0:03:00.8]} 7. e4 {[%clk 0:02:57]} 7... cxd4 {[%clk 0:02:52.3]} 8. e5 {[%clk
0:02:55.3]} 8... Nfd7 {[%clk 0:02:52.4]} 9. Qxd4 {[%clk 0:02:54.7]} 9... Nc6
{[%clk 0:02:51.6]} 10. Qf4 {[%clk 0:02:53.5]} 10... Qc7 {[%clk 0:02:44.8]} 11.
Re1 {[%clk 0:02:53.5]} 11... Ndxe5 {[%clk 0:02:18.7]} 12. Nxe5 {[%clk
0:02:54.4]} 12... Nxe5 {[%clk 0:02:18.7]} 13. Qxe5 {[%clk 0:02:53.6]} 13... Qxc4
{[%clk 0:02:17.6]} 14. Nc3 {[%clk 0:02:52]} 14... Qc5 {[%clk 0:02:12.9]} 15. Nd5
{[%clk 0:02:49.7]} 15... f6 {[%clk 0:01:42.6]} 16. Qh5+ {[%clk 0:02:47.4]} 16...
g6 {[%clk 0:01:42.8]} 17. Nxf6+ {[%clk 0:02:42.9]} 17... Kf7 {[%clk 0:01:43]}
18. Qd1 {[%clk 0:02:38.4]} 18... Be7 {[%clk 0:01:15.1]} 19. Ne4 {[%clk
0:02:32.7]} 19... Qd5 {[%clk 0:00:55.2]} 20. Qc2 {[%clk 0:02:24.3]} 20... e5
{[%clk 0:00:41.1]} 21. Bg5 {[%clk 0:02:14.3]} 21... Bf5 {[%clk 0:00:32]} 22.
Bxe7 {[%clk 0:02:07.6]} 22... Kxe7 {[%clk 0:00:17.6]} 23. Qc7+ {[%clk
0:02:03.8]} 23... Ke6 {[%clk 0:00:13.3]} 24. Nc5+ {[%clk 0:01:57.7]} 24... Kf6
{[%clk 0:00:11.4]} 25. Rad1 {[%clk 0:01:54.2]} 25... Qxa2 {[%clk 0:00:01.4]} 26.
Qxe5+ {[%clk 0:01:53.2]} 26... Kg5 {[%clk 0:00:01.3]} 27. h4+ {[%clk 0:01:46.4]}
27... Kh6 {[%clk 0:00:01.1]} 28. Qf4+ {[%clk 0:01:45.4]} 1-0

[Event "Early-Titled-Tuesday-Blitz-March-26-2024"]
[Site "Chess.com"]
[Date "2024.03.26"]
[Round "3"]
[White "esteban062000"]
[Black "amylazy"]
[Result "0-1"]
[WhiteElo "2161"]
[BlackElo "2415"]
[TimeControl "180+1"]
[EndTime "8:26:20 PDT"]
[Termination "amylazy won by resignation"]

1. e4 {[%clk 0:03:00.9]} 1... c5 {[%clk 0:02:55.5]} 2. Nf3 {[%clk 0:03:00.6]}
2... e6 {[%clk 0:02:55.7]} 3. d4 {[%clk 0:03:00.7]} 3... cxd4 {[%clk 0:02:56.6]}
4. Nxd4 {[%clk 0:03:01.6]} 4... a6 {[%clk 0:02:55.4]} 5. c4 {[%clk 0:03:01.5]}
5... Nf6 {[%clk 0:02:54.6]} 6. Nc3 {[%clk 0:03:01.7]} 6... Qc7 {[%clk
0:02:54.7]} 7. Bd3 {[%clk 0:03:01]} 7... Nc6 {[%clk 0:02:53.3]} 8. Nxc6 {[%clk
0:03:00.8]} 8... dxc6 {[%clk 0:02:53.2]} 9. O-O {[%clk 0:03:01.1]} 9... e5
{[%clk 0:02:52.4]} 10. a3 {[%clk 0:02:43.1]} 10... Be6 {[%clk 0:02:48.9]} 11. b4
{[%clk 0:02:41]} 11... Be7 {[%clk 0:02:45.6]} 12. f3 {[%clk 0:02:32.4]} 12...
Rd8 {[%clk 0:02:45.1]} 13. Qe2 {[%clk 0:02:29.7]} 13... O-O {[%clk 0:02:42.8]}
14. Be3 {[%clk 0:02:26.9]} 14... a5 {[%clk 0:02:30.1]} 15. c5 {[%clk 0:02:14.3]}
15... axb4 {[%clk 0:02:12.2]} 16. axb4 {[%clk 0:02:15.2]} 16... Ra8 {[%clk
0:02:12.4]} 17. Na4 {[%clk 0:02:05.3]} 17... Nd7 {[%clk 0:02:02.7]} 18. f4
{[%clk 0:01:39.4]} 18... Bb3 {[%clk 0:01:52.9]} 19. Nc3 {[%clk 0:01:24.4]} 19...
Rxa1 {[%clk 0:01:47]} 20. Rxa1 {[%clk 0:01:25.3]} 20... exf4 {[%clk 0:01:32.4]}
21. Bd2 {[%clk 0:00:56.3]} 21... Qe5 {[%clk 0:01:22.1]} 22. Rf1 {[%clk
0:00:53.4]} 22... Bg5 {[%clk 0:01:19.3]} 23. Qf3 {[%clk 0:00:39.9]} 23... Qd4+
{[%clk 0:01:18]} 24. Kh1 {[%clk 0:00:39.1]} 24... Ne5 {[%clk 0:01:18.5]} 25. Ne2
{[%clk 0:00:35.9]} 25... Qxd3 {[%clk 0:01:17.2]} 0-1

[Event "Early-Titled-Tuesday-Blitz-March-26-2024"]
[Site "Chess.com"]
[Date "2024.03.26"]
[Round "3"]
[White "Zavgorodniy_Sergiy"]
[Black "MarijaKuznecova"]
[Result "1-0"]
[WhiteElo "2621"]
[BlackElo "2422"]
[TimeControl "180+1"]
[EndTime "8:26:27 PDT"]
[Termination "Zavgorodniy_Sergiy won on time"]

1. d4 {[%clk 0:03:00.9]} 1... Nf6 {[%clk 0:02:58.1]} 2. c4 {[%clk 0:03:00.9]}
2... c5 {[%clk 0:02:56.7]} 3. Nf3 {[%clk 0:03:00.1]} 3... cxd4 {[%clk
0:02:51.6]} 4. Nxd4 {[%clk 0:03:01]} 4... e5 {[%clk 0:02:51.6]} 5. Nb5 {[%clk
0:03:01]} 5... d5 {[%clk 0:02:51.9]} 6. cxd5 {[%clk 0:02:59.9]} 6... Bc5 {[%clk
0:02:52.4]} 7. N5c3 {[%clk 0:02:59.5]} 7... O-O {[%clk 0:02:46.5]} 8. g3 {[%clk
0:02:59.1]} 8... Ng4 {[%clk 0:02:39.3]} 9. e3 {[%clk 0:02:58.7]} 9... f5 {[%clk
0:02:35.5]} 10. Be2 {[%clk 0:02:54.6]} 10... Qf6 {[%clk 0:02:06.4]} 11. O-O
{[%clk 0:02:51.8]} 11... h5 {[%clk 0:01:36.4]} 12. h3 {[%clk 0:02:45.3]} 12...
Nh6 {[%clk 0:01:36.1]} 13. Bxh5 {[%clk 0:02:44.5]} 13... f4 {[%clk 0:01:05.9]}
14. Ne4 {[%clk 0:02:41.9]} 14... Qb6 {[%clk 0:01:05.5]} 15. Nxc5 {[%clk
0:02:39.6]} 15... Qxc5 {[%clk 0:01:06.4]} 16. exf4 {[%clk 0:02:36.6]} 16... Bxh3
{[%clk 0:01:04.6]} 17. Re1 {[%clk 0:02:34.1]} 17... exf4 {[%clk 0:01:02.8]} 18.
Bxf4 {[%clk 0:02:35]} 18... Rxf4 {[%clk 0:00:28]} 19. gxf4 {[%clk 0:02:35.9]}
19... Nd7 {[%clk 0:00:27.9]} 20. Nc3 {[%clk 0:02:32.8]} 20... Rf8 {[%clk
0:00:27.1]} 21. Qf3 {[%clk 0:02:28.3]} 21... Bf5 {[%clk 0:00:20.2]} 22. Rad1
{[%clk 0:02:24.8]} 22... Nf6 {[%clk 0:00:18.9]} 23. Rd2 {[%clk 0:02:05.6]} 23...
Nxh5 {[%clk 0:00:10.4]} 24. Qxh5 {[%clk 0:02:06.5]} 24... Bg4 {[%clk 0:00:09.8]}
25. Qe5 {[%clk 0:02:01.1]} 25... Nf5 {[%clk 0:00:09.2]} 26. Ne4 {[%clk
0:01:59.6]} 26... Qa5 {[%clk 0:00:05.2]} 27. d6 {[%clk 0:01:43]} 27... Qd8
{[%clk 0:00:02.1]} 28. Ng5 {[%clk 0:01:40.8]} 1-0

[Event "Early-Titled-Tuesday-Blitz-March-26-2024"]
[Site "Chess.com"]
[Date "2024.03.26"]
[Round "3"]
[White "aljado"]
[Black "daika91"]
[Result "0-1"]
[WhiteElo "2164"]
[BlackElo "2723"]
[TimeControl "180+1"]
[EndTime "8:26:30 PDT"]
[Termination "daika91 won on time"]

1. e4 {[%clk 0:03:00.9]} 1... e5 {[%clk 0:02:58.5]} 2. Nf3 {[%clk 0:03:00.8]}
2... Nf6 {[%clk 0:02:57.7]} 3. Nxe5 {[%clk 0:02:57.1]} 3... d6 {[%clk
0:02:57.8]} 4. Nf3 {[%clk 0:02:56.1]} 4... Nxe4 {[%clk 0:02:58.2]} 5. Nc3 {[%clk
0:02:55.6]} 5... Nxc3 {[%clk 0:02:57.8]} 6. bxc3 {[%clk 0:02:54.7]} 6... Be7
{[%clk 0:02:57.7]} 7. d4 {[%clk 0:02:54.6]} 7... O-O {[%clk 0:02:58.6]} 8. Bd3
{[%clk 0:02:53.8]} 8... b6 {[%clk 0:02:56.7]} 9. Be4 {[%clk 0:02:48.5]} 9... d5
{[%clk 0:02:55]} 10. Bd3 {[%clk 0:02:47.3]} 10... Nc6 {[%clk 0:02:54.6]} 11. O-O
{[%clk 0:02:46.4]} 11... Bg4 {[%clk 0:02:53.6]} 12. Re1 {[%clk 0:02:38.7]} 12...
h6 {[%clk 0:02:50.5]} 13. Qe2 {[%clk 0:02:32.3]} 13... Bd6 {[%clk 0:02:50.3]}
14. h3 {[%clk 0:02:16.6]} 14... Bh5 {[%clk 0:02:49.6]} 15. g4 {[%clk 0:02:06.5]}
15... Bg6 {[%clk 0:02:49.6]} 16. Be3 {[%clk 0:01:47.5]} 16... Be4 {[%clk
0:02:41.2]} 17. Bxe4 {[%clk 0:01:44.4]} 17... dxe4 {[%clk 0:02:40.9]} 18. Nd2
{[%clk 0:01:41.6]} 18... Qh4 {[%clk 0:02:35.5]} 19. Kg2 {[%clk 0:01:39.1]} 19...
Rae8 {[%clk 0:02:29.8]} 20. Nf1 {[%clk 0:01:35.2]} 20... Ne7 {[%clk 0:02:24.1]}
21. Ng3 {[%clk 0:01:32.3]} 21... f5 {[%clk 0:02:18.3]} 22. gxf5 {[%clk
0:01:22.1]} 22... Nxf5 {[%clk 0:02:19.2]} 23. Qg4 {[%clk 0:01:08.1]} 23... Bxg3
{[%clk 0:01:59.2]} 24. fxg3 {[%clk 0:00:59.3]} 24... Qf6 {[%clk 0:01:46.5]} 25.
Bf4 {[%clk 0:00:23.7]} 25... Qc6 {[%clk 0:01:36.9]} 26. Be5 {[%clk 0:00:01.7]}
26... e3+ {[%clk 0:01:34.1]} 0-1